bitfinex-derivatives/quotes_ETHF0:USTF0_20250403
["timestamp","ask_amount","ask_price","bid_price","bid_amount"]
[1743678572650,1.11317,1796.8,1796.7,5.0776]
[1743678573351,1.11317,1796.8,1796.7,6.19084]
[1743678573550,1.11317,1796.8,1796.7,5.0776]
[1743678573949,1.11317,1796.8,1796.7,6.19084]
[1743678574142,1.11317,1796.8,1796.7,5.0776]
[1743678574346,1.11317,1796.8,1796.7,3.2078]
[1743678574848,1.11317,1796.8,1796.5,43.83111259]
[1743678574849,1.1133,1796.6,1796.5,44.01616259]
[1743678575047,1.1133,1796.6,1796.5,3.21616259]
[1743678575252,3.02348,1796.7,1796.6,1.1133]
[1743678575547,1.11322,1796.8,1796.7,1.11323]
[1743678575745,1.11322,1796.8,1796.7,3.2078]
[1743678575746,1.11317,1796.8,1796.7,3.2078]
[1743678575946,1.11317,1796.8,1796.7,44.0078]
[1743678576158,1.11314,1796.9,1796.8,1.11317]
[1743678576347,1.11314,1796.9,1796.8,1.8493]
[1743678576651,1.11317,1796.8,1796.7,3.2078]
[1743678576853,1.11317,1796.8,1796.7,44.0078]
[1743678577249,1.11317,1796.8,1796.7,45.8571]
[1743678578047,1.11314,1796.9,1796.8,1.11312]
[1743678578950,0.00835999,1797.0,1796.9,1.11311]
[1743678579255,0.00835999,1797.0,1796.9,6.31221]
[1743678580253,1e-08,1797.0,1796.9,12.86721]
[1743678581057,1e-08,1797.0,1796.9,10.36721]
[1743678581851,1e-08,1797.0,1796.9,12.86721]
[1743678586062,1.8924,1797.7,1796.9,11.7541]
[1743678586269,5.9911,1798.0,1797.6,1.11262]
[1743678586563,1.11258,1797.8,1797.7,1.9178]
[1743678586967,1.11268,1797.6,1797.5,3.8458]
[1743678587466,1.11268,1797.6,1797.5,6.87634]
[1743678587767,2.92346,1797.7,1797.5,6.87634]
[1743678587969,2.92346,1797.7,1797.6,1.11268]
[1743678588359,1.11268,1797.6,1797.5,6.8763]
[1743678588558,3.09778,1797.6,1797.5,1.9178]
[1743678588762,3.09778,1797.6,1797.5,3.03054]
[1743678589261,3.09783,1797.6,1797.5,1.11274]
[1743678589656,1.9851,1797.6,1797.4,3.21616259]
[1743678589856,3.09783,1797.6,1797.4,6.26862259]
[1743678590057,4.94143,1797.6,1797.4,6.26862259]
[1743678590267,4.94143,1797.6,1797.5,1.11274]
[1743678590764,4.94138,1797.6,1797.5,1.11274]
[1743678591157,1.11265,1797.7,1797.4,5.15586259]
[1743678591358,1.11265,1797.7,1797.5,1.11269]
[1743678591558,1.8181,1797.6,1797.5,2.99139]
[1743678591757,2.93081,1797.6,1797.4,3.21616259]
[1743678591971,1.11274,1797.5,1797.4,0.00836259]
[1743678592163,2.93084,1797.5,1797.4,0.00836259]
[1743678592363,2.93084,1797.5,1797.4,1.12116259]
[1743678592563,2.93084,1797.5,1797.4,4.32896259]
[1743678592564,1.8181,1797.5,1797.4,4.32896259]
[1743678592859,5.56229,1798.0,1797.5,2.78183]
[1743678592860,2.78111,1798.0,1797.5,2.78183]
[1743678593064,1.8181,1797.8,1797.5,3.2078]
[1743678593262,1.11267,1797.7,1797.5,2.99139]
[1743678593472,1.11257,1797.8,1797.7,1.11257]
[1743678593859,3.9086,1797.9,1797.7,1.11257]
[1743678594059,1.11261,1797.8,1797.7,1.11261]
[1743678594463,1.11262,1797.7,1797.6,41.91264]
[1743678595074,1.11262,1797.7,1797.6,40.8]
[1743678596964,1.1127,1797.7,1797.6,1.11264]
[1743678597570,1.1127,1797.7,1797.6,41.91264]
[1743678599771,1.1127,1797.7,1797.6,40.8]
[1743678599974,1.1127,1797.7,1797.4,0.00836259]
[1743678599975,1.11274,1797.5,1797.4,0.00836259]
[1743678600474,1.11274,1797.5,1797.4,40.80836259]
[1743678600664,1.11274,1797.5,1797.4,42.73466259]
[1743678601174,1.11272,1797.6,1797.4,42.73466259]
[1743678601361,1.11272,1797.6,1797.5,1.11273]
[1743678601669,1.11272,1797.6,1797.5,6.24683]
[1743678601861,1.11272,1797.6,1797.5,5.1341]
[1743678602266,1.11274,1797.5,1797.4,0.00836259]
[1743678602465,1.11274,1797.5,1797.4,42.73466259]
[1743678603066,1.11274,1797.5,1797.4,40.80836259]
[1743678603268,1.11274,1797.5,1797.4,43.82216259]
[1743678603870,1.11272,1797.6,1797.5,1.11272]
[1743678604072,1.11274,1797.5,1797.4,41.92111259]
[1743678604272,1.11274,1797.5,1797.4,44.01616259]
[1743678604676,1.11274,1797.5,1797.4,40.80836259]
[1743678605769,6.82054,1797.5,1797.4,40.80000262]
[1743678605977,8.80494,1797.5,1797.4,40.80000262]
[1743678606179,10.73034,1797.5,1797.4,40.80000262]
[1743678606370,10.73034,1797.5,1797.4,2.62e-06]
[1743678608468,3.8932,1798.8,1797.4,76.34340641]
[1743678608667,1.11218,1798.4,1798.3,3.2078]
[1743678608971,1.11214,1798.5,1798.3,44.5615426]
[1743678609171,1.8631,1798.4,1798.3,44.0078]
[1743678609374,1.8631,1798.4,1798.3,44.5611332]
[1743678609781,2.97528,1798.4,1798.3,44.5611332]
[1743678610074,2.97528,1798.4,1798.3,44.56960266]
[1743678610279,2.97528,1798.4,1798.3,3.76960266]
[1743678610482,2.97528,1798.4,1798.3,3.2078]
[1743678611078,2.97528,1798.4,1798.2,0.00836259]
[1743678611079,1.11225,1798.3,1798.2,0.00836259]
[1743678611382,2.97535,1798.3,1798.2,3.21616259]
[1743678613979,4.85665,1798.3,1798.2,3.21616259]
[1743678615982,4.85665,1798.3,1798.2,2.05647259]
[1743678616484,1.11237,1798.1,1798.0,1.8955]
[1743678617175,1.12073259,1798.2,1798.1,1.11234]
[1743678617380,1.12073259,1798.2,1798.1,0.56119792]
[1743678617583,1.12073259,1798.2,1798.1,5.58067221]
[1743678617880,1.12073259,1798.2,1798.1,5.58043658]
[1743678618384,1.12073259,1798.2,1798.1,6.69280658]
[1743678618588,0.00836259,1798.2,1798.1,6.69280658]
[1743678618786,2.78036,1798.5,1798.2,1.11231]
[1743678618986,1.11212,1798.5,1798.4,3.2078]
[1743678619383,1.11212,1798.5,1798.4,6.9582]
[1743678619982,1.11212,1798.5,1798.4,7.51859751]
[1743678620283,1.11212,1798.5,1798.4,6.9582]
[1743678620875,1.11212,1798.5,1798.4,3.7504]
[1743678621080,3.11462,1798.5,1798.4,1.8631]
[1743678621773,1.11212,1798.5,1798.4,1.8631]
[1743678622281,1.11212,1798.5,1798.4,5.0709]
[1743678622485,1.11212,1798.5,1798.4,7.0114]
[1743678622879,2.78002,1798.7,1798.4,11.18344277]
[1743678623184,1.112,1798.7,1798.6,4.31986]
[1743678623584,1.112,1798.7,1798.6,8.9854027]
[1743678624494,2.77941,1799.1,1798.6,11.4853727]
[1743678624788,1.11192,1798.9,1798.8,3.2078]
[1743678624983,1.11192,1798.9,1798.8,5.138]
[1743678626488,1.11185,1799.0,1798.8,5.138]
[1743678626688,1.11185,1799.0,1798.8,6.24991]
[1743678626889,1.11185,1799.0,1798.9,1.11187]
[1743678627089,1.11185,1799.0,1798.8,6.24989]
[1743678627595,1.11178,1799.1,1798.9,1.11183]
[1743678627894,1.11178,1799.1,1799.0,3.2078]
[1743678628192,1.11178,1799.1,1799.0,4.31961]
[1743678628594,1.9839,1799.4,1799.0,4.31961]
[1743678628888,1.11173,1799.2,1799.0,3.2078]
[1743678629192,1.11173,1799.2,1799.1,1.11175]
[1743678629385,1.11173,1799.2,1799.0,4.31956]
[1743678629585,1.11175,1799.1,1799.0,4.31956]
[1743678630395,2.77893,1799.4,1799.1,1.1117]
[1743678630585,1.11173,1799.2,1799.0,3.2078]
[1743678630787,1.11173,1799.2,1799.1,1.11175]
[1743678631189,1.11173,1799.2,1799.0,4.31958]
[1743678631493,1.11175,1799.1,1799.0,4.31958]
[1743678631890,1.11187,1798.9,1798.8,5.138]
[1743678632300,1.11194,1798.8,1798.7,0.00833912]
[1743678632494,3.04124,1798.8,1798.7,0.00833912]
[1743678633197,7.11324,1798.8,1798.7,0.00833912]
[1743678633592,1.11194,1798.8,1798.7,3.21613912]
[1743678633799,1.11192,1798.9,1798.8,1.11193]
[1743678633994,2.77941,1799.1,1798.8,1.11193]
[1743678633995,1.9365,1799.0,1798.8,1.11194]
[1743678634197,1.11194,1798.8,1798.7,3.21613912]
[1743678634400,1.11194,1798.8,1798.7,0.00833912]
[1743678634902,1.11194,1798.8,1798.7,1.12033912]
[1743678635205,1.11194,1798.8,1798.7,4.32806912]
[1743678635404,1.11194,1798.8,1798.7,6.29916912]
[1743678636698,1.11178,1799.1,1799.0,1.11175]
[1743678636889,2.96173,1799.2,1799.1,1.11175]
[1743678637088,1.9707,1799.5,1799.2,2.77923]
[1743678637293,1.11156,1799.5,1799.4,1.11156]
[1743678637504,1.11157,1799.4,1799.3,3.10378]
[1743678637699,1.11157,1799.4,1799.3,1.9922]
[1743678637901,1.11157,1799.4,1799.3,42.7922]
[1743678639004,1.11154,1799.5,1799.4,1.11157]
[1743678639305,1.11154,1799.5,1799.4,5.2]
[1743678639601,1.11154,1799.5,1799.4,6.31157]
[1743678640798,1.11154,1799.5,1799.4,5.2]
[1743678641004,1.11154,1799.5,1799.4,3.2078]
[1743678641607,1.11154,1799.5,1799.4,5.2011]
[1743678642109,1.85,1799.7,1799.6,1.11144]
[1743678642403,2.96142,1799.7,1799.6,3.2078]
[1743678642798,2.96142,1799.7,1799.6,45.9126]
[1743678642995,2.96142,1799.7,1799.6,47.02404]
[1743678642996,1.11142,1799.7,1799.6,47.02404]
[1743678643391,1.11137,1799.8,1799.7,1.11136]
[1743678643601,1.11138,1799.7,1799.6,44.0078]
[1743678643800,1.11138,1799.7,1799.6,44.01613912]
[1743678644003,1.11138,1799.7,1799.6,45.12757912]
[1743678644909,1.9632,1799.9,1799.6,46.79462912]
[1743678645111,3.07446,1799.9,1799.8,4.31912]
[1743678646711,1.9384,1800.0,1799.9,1.11126]
[1743678647005,1.9384,1800.0,1799.9,3.30746]
[1743678648002,2.068,1800.1,1800.0,1.11119]
[1743678648203,2.068,1800.1,1800.0,6.51519]
[1743678648507,3.17913,1800.1,1800.0,6.51519]
[1743678649005,3.17913,1800.1,1800.0,3.2078]
[1743678654512,1.11132,1799.8,1799.7,1.11134]
[1743678655310,1.11138,1799.7,1799.6,41.91972912]
[1743678655718,1.11138,1799.7,1799.6,40.80833912]
[1743678657910,3.20028,1799.7,1799.6,40.80833912]
[1743678659818,5.20878,1799.7,1799.6,40.80833912]
[1743678661818,5.20878,1799.7,1799.6,0.00833912]
[1743678662223,5.20878,1799.7,1799.6,40.80833912]
[1743678663625,3.20028,1799.7,1799.6,40.80833912]
[1743678665231,5.964,1800.1,1799.6,45.04566524]
[1743678665526,2.77776,1800.2,1800.0,3.2078]
[1743678665822,1.11118,1800.1,1800.0,4.31898]
[1743678666021,1.11118,1800.1,1800.0,4.88038058]
[1743678666322,1.11118,1800.1,1800.0,46.57940109]
[1743678666818,1.11118,1800.1,1800.0,45.46822109]
[1743678667319,1.11118,1800.1,1800.0,46.57941109]
[1743678668013,1.111,1800.4,1800.3,1.11096]
[1743678668212,1.111,1800.4,1800.3,4.88016058]
[1743678668415,1.111,1800.4,1800.3,3.76920058]
[1743678668925,1.111,1800.4,1800.3,0.56140058]
[1743678669422,1.111,1800.4,1800.3,3.76920058]
[1743678672028,1.111,1800.4,1800.3,4.88021058]
[1743678672626,1.111,1800.4,1800.3,3.76920058]
[1743678672828,1.111,1800.4,1800.3,4.88021058]
[1743678674424,11.593,1800.7,1800.3,4.88021058]
[1743678674621,1.11095,1800.4,1800.3,4.31881]
[1743678674820,1.11095,1800.4,1800.3,4.88004178]
[1743678675018,1.11095,1800.4,1800.3,4.31881]
[1743678675216,1.11095,1800.4,1800.3,4.88004237]
[1743678675413,1.11095,1800.4,1800.3,3.2078]
[1743678675823,1.11095,1800.4,1800.3,4.87994732]
[1743678676221,1.11095,1800.4,1800.3,3.76893732]
[1743678676421,1.11095,1800.4,1800.3,3.2078]
[1743678677722,1.11095,1800.4,1800.1,4.3881]
[1743678677723,1.11107,1800.2,1800.1,8.70698]
[1743678677915,1.11107,1800.2,1800.1,8.15691986]
[1743678678115,1.11107,1800.2,1800.1,3.2078]
[1743678678927,3.24777,1800.2,1800.1,3.2078]
[1743678679129,1.11119,1800.0,1799.9,5.32586]
[1743678679329,1.11118,1800.1,1800.0,1.11118]
[1743678679531,1.11118,1800.1,1800.0,41.91118]
[1743678680431,1.11111,1800.2,1800.1,1.11108]
[1743678680621,1.11111,1800.2,1800.1,4.31888]
[1743678681022,5.06506,1800.3,1800.2,1.11107]
[1743678681830,1.11107,1800.2,1800.1,4.31887]
[1743678683930,1.11107,1800.2,1800.1,3.2078]
[1743678684130,3.29627,1800.2,1800.1,3.2078]
[1743678684326,1.11113,1800.1,1800.0,40.8]
[1743678684535,5.45633,1800.1,1800.0,40.8]
[1743678684830,7.95633,1800.1,1800.0,40.8]
[1743678685031,1.11119,1800.0,1799.9,3.2078]
[1743678685235,1.11132,1799.8,1799.7,61.85]
[1743678685426,1.11132,1799.8,1799.7,42.8977]
[1743678687534,1.11138,1799.7,1799.6,0.00833912]
[1743678687747,7.11568,1799.7,1799.6,0.00833912]
[1743678688036,1.11138,1799.7,1799.6,40.80833912]
[1743678688339,1.11138,1799.7,1799.6,44.01613912]
[1743678688736,1.11138,1799.7,1799.6,46.07163912]
[1743678689139,1.11138,1799.7,1799.6,42.86383912]
[1743678689330,1.11138,1799.7,1799.6,46.07163912]
[1743678689936,1.11138,1799.7,1799.6,48.28373912]
[1743678690824,1.11138,1799.7,1799.6,48.84522254]
[1743678691433,1.11138,1799.7,1799.6,48.28373912]
[1743678691737,1.11138,1799.7,1799.6,40.80833912]
[1743678691944,7.58928,1799.8,1799.4,3.2078]
[1743678692241,1.11157,1799.4,1799.3,2.0914]
[1743678692841,1.11157,1799.4,1799.3,42.8914]
[1743678693634,1.11157,1799.4,1799.3,40.8]
[1743678694541,1.11163,1799.3,1799.2,0.00833912]
[1743678694738,3.32493,1799.3,1799.2,0.00833912]
[1743678695248,9.74293,1799.3,1799.2,9.12e-06]
[1743678695439,12.95073,1799.3,1799.2,9.12e-06]
[1743678695642,9.74293,1799.3,1799.2,9.12e-06]
[1743678696540,1.11175,1799.1,1799.0,0.48071]
[1743678696740,1.11175,1799.1,1799.0,1e-05]
[1743678696938,1.11175,1799.1,1799.0,3.20781]
[1743678697549,1.11175,1799.1,1799.0,44.00781]
[1743678698844,3.13625,1799.1,1799.0,44.00781]
[1743678701543,3.13625,1799.1,1799.0,40.80001]
[1743678701848,2.77973,1798.9,1798.6,2.1764]
[1743678702049,1.11206,1798.6,1798.5,4.2495]
[1743678702755,1.11206,1798.6,1798.5,45.0495]
[1743678703453,3.915,1798.8,1798.5,45.0495]
[1743678703652,3.2078,1798.9,1798.5,45.0495]
[1743678703653,3.2078,1798.9,1798.6,2.1838]
[1743678703849,1.112,1798.7,1798.6,5.3916]
[1743678704356,2.77964,1799.0,1798.7,1.11197]
[1743678704546,10.85059,1799.1,1798.8,6.50354]
[1743678704547,1.11187,1798.9,1798.8,6.50354]
[1743678705053,1.11187,1798.9,1798.8,5.3916]
[1743678705245,1.11187,1798.9,1798.8,3.2078]
[1743678705448,1.11187,1798.9,1798.5,49.36936]
[1743678705449,1.11206,1798.6,1798.5,49.36936]
[1743678705654,1.11206,1798.6,1798.5,49.92802626]
[1743678705853,1.11203,1798.7,1798.6,1.11203]
[1743678706155,1.11194,1798.8,1798.7,1.112]
[1743678706455,1.11194,1798.8,1798.7,3.2078]
[1743678707154,1.11194,1798.8,1798.7,5.3827]
[1743678707553,1.11194,1798.8,1798.7,2.1749]
[1743678709955,1.11206,1798.6,1798.5,48.2573]
[1743678710260,1.11206,1798.6,1798.5,50.3609]
[1743678711257,1.11206,1798.6,1798.5,47.1531]
[1743678713557,1.11206,1798.6,1798.5,50.3609]
[1743678713754,1.11206,1798.6,1798.5,51.47302]
[1743678714259,1.11206,1798.6,1798.5,50.3609]
[1743678715164,1.11206,1798.6,1798.5,47.1531]
[1743678720570,1.11212,1798.5,1798.4,0.00833912]
[1743678720758,10.57172,1798.5,1798.4,0.00833912]
[1743678720963,13.07172,1798.5,1798.4,0.00833912]
[1743678722468,13.07172,1798.5,1798.4,1.68148382]
[1743678722469,1.11212,1798.5,1798.4,1.68148382]
[1743678722866,1.11212,1798.5,1798.4,3.77178382]
[1743678723073,1.11212,1798.5,1798.4,44.57178382]
[1743678723558,1.11212,1798.5,1798.4,43.45960382]
[1743678723865,1.11205,1798.7,1798.6,1.112]
[1743678724073,1.11205,1798.7,1798.6,1.6729647]
[1743678724465,1.11205,1798.7,1798.6,3.8970647]
[1743678724659,2.77938,1799.1,1798.6,47.26319719]
[1743678724864,1.11194,1798.9,1798.8,1.11191]
[1743678725067,1.11194,1798.9,1798.8,2.78533989]
[1743678725467,1.11194,1798.9,1798.8,41.36123989]
[1743678726064,1.11194,1798.9,1798.8,43.58533989]
[1743678726378,1.11194,1798.9,1798.8,45.59548911]
[1743678726768,1.11194,1798.9,1798.8,45.59560786]
[1743678727274,1.11194,1798.9,1798.8,44.48364571]
[1743678727474,1.11194,1798.9,1798.8,43.58546224]
[1743678727670,1.11194,1798.9,1798.8,44.48388898]
[1743678727874,1.11194,1798.9,1798.8,43.58555235]
[1743678728177,1.11194,1798.9,1798.8,44.48389577]
[1743678728675,1.11194,1798.9,1798.8,44.48408192]
[1743678728874,1.11194,1798.9,1798.8,45.59602192]
[1743678729073,1.05644,1798.9,1798.8,45.59602192]
[1743678730164,1.05644,1798.9,1798.8,45.65152192]
[1743678730467,1.05644,1798.9,1798.8,44.53958192]
[1743678730669,1.05644,1798.9,1798.8,44.53970435]
[1743678732177,1.05644,1798.9,1798.8,43.64116858]
[1743678732788,1.05644,1798.9,1798.8,45.65166835]
[1743678734491,1.05644,1798.9,1798.8,45.65150637]
[1743678736291,1.1118,1799.1,1799.0,1.11178]
[1743678736889,1.1118,1799.1,1799.0,1.67326882]
[1743678737091,1.1118,1799.1,1799.0,3.92906882]
[1743678737392,1.1118,1799.1,1799.0,44.72906882]
[1743678737890,1.1117,1799.3,1799.2,1.11169]
[1743678738591,1.1117,1799.3,1799.2,3.36749]
[1743678738987,1.1117,1799.3,1799.2,2.2558]
[1743678739186,1.1117,1799.3,1799.2,2.8170457]
[1743678739490,1.1117,1799.3,1799.2,3.36749]
[1743678739688,0.00826086,1799.5,1799.3,1.11163]
[1743678739887,1.11976086,1799.5,1799.3,1.11157]
[1743678740185,1.11976086,1799.5,1799.0,43.57951]
[1743678740186,1.11175,1799.1,1799.0,44.0078]
[1743678740387,1.11175,1799.1,1799.0,5.95025625]
[1743678740886,1.11175,1799.1,1799.0,46.75025625]
[1743678741390,3.31695,1799.1,1799.0,46.75025625]
[1743678741793,3.31695,1799.1,1799.0,40.8]
[1743678745797,1.11187,1798.9,1798.8,0.0555]
[1743678746293,1.11187,1798.9,1798.8,40.8555]
[1743678746490,3.19157,1798.9,1798.8,40.8555]
[1743678751092,1.11187,1798.9,1798.8,40.8555]
[1743678751292,1.11187,1798.9,1798.8,42.52889495]
[1743678751797,1.11187,1798.9,1798.8,43.4277433]
[1743678752300,1.11187,1798.9,1798.8,43.42808149]
[1743678752701,1.11187,1798.9,1798.8,46.63588149]
[1743678754201,1.11187,1798.9,1798.8,46.63754472]
[1743678754600,1.11187,1799.0,1798.9,1.11183]
[1743678754801,1.11187,1798.9,1798.8,45.11969]
[1743678755005,1.11187,1798.9,1798.8,46.58219861]
[1743678756198,1.11185,1799.0,1798.9,1.11181]
[1743678756402,1.1118,1799.1,1799.0,1.11176]
[1743678756604,1.1118,1799.1,1799.0,4.65456861]
[1743678757701,1.1118,1799.1,1799.0,4.65437787]
[1743678757902,1.1118,1799.1,1799.0,4.65437277]
[1743678759005,1.11166,1799.3,1799.2,1.11161]
[1743678759212,1.11166,1799.3,1799.2,1.67402796]
[1743678759508,1.11166,1799.3,1799.2,2.57367691]
[1743678759903,1.11162,1799.4,1799.3,1.11157]
[1743678760096,1.11162,1799.4,1799.3,1.67398796]
[1743678761610,1.11162,1799.4,1799.3,2.57321207]
[1743678761806,1.11162,1799.4,1799.3,2.5727999]
[1743678762016,1.11162,1799.4,1799.3,2.57280717]
[1743678763106,0.00826086,1799.5,1799.4,1.11157]
[1743678763307,0.00826086,1799.5,1799.4,3.79986872]
[1743678763308,1.11976086,1799.5,1799.4,3.79986872]
[1743678763501,1.11976086,1799.5,1799.4,2.68829872]
[1743678763702,1.11976086,1799.5,1799.4,3.79986872]
[1743678764002,1.11976086,1799.5,1799.4,5.89609872]
[1743678764608,3.19406086,1799.5,1799.4,5.89609872]
[1743678764908,3.19406086,1799.5,1799.4,0.56199872]
[1743678765109,1.11169,1799.2,1799.1,5.75271]
[1743678765300,1.11169,1799.2,1799.1,4.641]
[1743678765506,1.11169,1799.2,1799.1,5.20257044]
[1743678765707,1.11169,1799.2,1799.1,5.20257487]
[1743678765903,1.11169,1799.2,1799.1,7.26807487]
[1743678766305,2.0743,1799.3,1799.1,4.06027487]
[1743678766505,5.964,1799.4,1799.3,1.11163]
[1743678766707,5.964,1799.4,1799.3,4.88100075]
[1743678766905,5.964,1799.4,1799.3,6.94650075]
[1743678767107,1.11978086,1799.5,1799.4,1.11157]
[1743678767313,1.11978086,1799.5,1799.4,3.15454075]
[1743678767712,1.11978086,1799.5,1799.4,3.15437148]
[1743678768413,7.2995,1800.1,1799.8,1.11128]
[1743678768617,1.11119,1800.0,1799.9,1.4814]
[1743678768814,1.11119,1800.0,1799.9,2.59266]
[1743678769115,1.11119,1800.0,1799.9,3.15384456]
[1743678769613,1.11119,1800.0,1799.9,3.15340186]
[1743678769818,1.11119,1800.0,1799.9,4.52100186]
[1743678770120,10.88252912,1800.1,1800.0,1.11119]
[1743678770313,7.08352912,1800.1,1800.0,2.56979]
[1743678770819,7.08352912,1800.1,1800.0,3.13008582]
[1743678771017,5.97233912,1800.1,1800.0,3.13008582]
[1743678771410,7.08346912,1800.1,1800.0,1.4586]
[1743678771610,7.08346912,1800.1,1800.0,43.6947]
[1743678772019,8.57946912,1800.1,1800.0,42.2586]
[1743678772214,1.11946912,1800.1,1800.0,43.36979]
[1743678772416,0.00833912,1800.1,1800.0,47.13723992]
[1743678772721,1.11098,1800.4,1800.3,1.11098]
[1743678773321,1.11098,1800.4,1800.3,4.03668]
[1743678776319,2.57554912,1800.5,1800.4,1.11095]
[1743678776626,1.11924912,1800.5,1800.4,2.51705]
[1743678777020,0.00833912,1800.5,1800.4,2.51705]
[1743678777814,5.964,1801.2,1801.1,1.11052]
[1743678778012,1.11032,1801.5,1801.1,1.11052]
[1743678778013,1.4264,1801.3,1801.1,3.2078]
[1743678778219,1.4264,1801.3,1801.2,1.4061]
[1743678778525,2.53679,1801.3,1801.2,1.4061]
[1743678778727,2.53679,1801.3,1801.2,42.2061]
[1743678779219,1.324,1801.4,1801.2,42.2061]
[1743678779418,3.84206,1801.4,1801.2,43.31655]
[1743678779625,3.84206,1801.4,1801.3,1.4058]
[1743678780218,5.964,1802.0,1801.3,10.9296]
[1743678780426,2.77507,1801.9,1801.5,3.2078]
[1743678780625,1.11015,1801.7,1801.6,1.4058]
[1743678780822,1.4077,1801.9,1801.6,42.2058]
[1743678781027,1.11013,1801.8,1801.7,3.2078]
[1743678781532,1.05465,1801.7,1801.6,42.2058]
[1743678782625,1.05465,1801.7,1801.6,42.2613]
[1743678783126,1.05465,1801.7,1801.6,0.0555]
[1743678783330,3.78225,1801.7,1801.6,0.0555]
[1743678783629,5.32055,1801.7,1801.6,0.0555]
[1743678784118,11.28455,1801.7,1801.6,0.0555]
[1743678785522,9.91525,1801.7,1801.6,0.0555]
[1743678785723,9.91525,1801.7,1801.6,1.16571]
[1743678785724,13.74225,1801.7,1801.6,1.16571]
[1743678786031,13.74225,1801.7,1801.6,0.0555]
[1743678787129,5.964,1801.7,1801.6,1.16571]
[1743678787332,5.964,1801.7,1801.6,4.37351]
[1743678787633,3.824,1801.9,1801.8,1.11004]
[1743678787634,1.11003,1801.9,1801.8,1.11004]
[1743678787833,1.4624,1802.0,1801.7,1.4773]
[1743678787834,1.11008,1801.8,1801.7,1.4773]
[1743678788226,1.11007,1801.9,1801.7,2.58745]
[1743678788424,1.11007,1801.9,1801.8,1.5381]
[1743678788720,6.59466,1802.2,1801.8,4.7459]
[1743678789036,1.11002,1801.9,1801.8,5.85597]
[1743678789228,1.485,1802.1,1801.8,4.31787]
[1743678789428,1.485,1802.1,1801.9,40.8]
[1743678789631,1.10996,1802.0,1801.9,40.8]
[1743678790231,1.11002,1801.9,1801.8,3.2078]
[1743678790420,1.11002,1801.9,1801.8,4.31788]
[1743678790825,1.11002,1801.9,1801.8,3.2078]
[1743678792031,1.11002,1801.9,1801.8,4.31788]
[1743678792234,2.59501,1802.0,1801.9,1.11002]
[1743678792434,1.11001,1802.0,1801.9,1.11002]
[1743678792733,1.10999,1802.0,1801.9,1.10998]
[1743678794035,1.11002,1801.9,1801.8,5.63898]
[1743678794425,1.11002,1801.9,1801.8,3.2078]
[1743678794628,1.11008,1801.8,1801.7,40.8]
[1743678794823,1.4,1802.0,1801.7,41.91015]
[1743678795035,1.10996,1802.0,1801.9,1.11002]
[1743678795733,1.10995,1802.1,1802.0,1.10993]
[1743678795931,5.964,1802.2,1801.8,1.11004]
[1743678795932,1.11006,1801.9,1801.8,1.11004]
[1743678797138,1.11008,1801.8,1801.7,40.8]
[1743678797331,1.11021,1801.6,1801.5,1.11023]
[1743678797636,1.11008,1801.8,1801.7,1.11015]
[1743678798337,1.11015,1801.7,1801.6,4.31796]
[1743678798636,1.11015,1801.7,1801.6,4.87417997]
[1743678798838,1.11015,1801.7,1801.6,4.87417428]
[1743678799137,1.11015,1801.7,1801.6,4.31796]
[1743678799437,1.11015,1801.7,1801.6,4.87424818]
[1743678799840,1.11015,1801.7,1801.6,4.87455284]
[1743678800035,5.964,1802.0,1801.6,3.76439284]
[1743678800337,1.11006,1801.9,1801.8,1.11004]
[1743678800537,1.11006,1801.9,1801.8,1.66663284]
[1743678801332,1.11002,1802.0,1801.9,1.10999]
[1743678801531,1.11002,1802.0,1801.9,1.66658284]
[1743678801832,2.53181,1802.1,1802.0,1.10996]
[1743678802031,1.10991,1802.1,1802.0,1.66655284]
[1743678803037,1.10978,1802.4,1802.3,1.10975]
[1743678803334,1.10978,1802.4,1802.3,0.55659284]
[1743678803530,1.10978,1802.4,1802.3,1.44946041]
[1743678803734,1.10978,1802.4,1802.3,42.24946041]
[1743678803935,1.10978,1802.4,1802.3,41.35659284]
[1743678804334,1.10978,1802.4,1802.3,42.24990575]
[1743678804741,1.4677,1802.5,1802.4,1.10972]
[1743678805039,2.57735,1802.5,1802.4,1.66631284]
[1743678805343,2.57735,1802.5,1802.4,1.4504052]
[1743678805344,1.4677,1802.5,1802.4,1.4504052]
[1743678805535,1.10965,1802.5,1802.4,0.55659284]
[1743678805747,2.28804,1802.6,1802.5,1.10965]
[1743678806036,2.28804,1802.6,1802.5,0.55659284]
[1743678806237,2.28804,1802.6,1802.5,2.56061505]
[1743678806644,2.28804,1802.6,1802.5,0.55659284]
[1743678807532,1.10972,1802.4,1802.3,41.90974]
[1743678807737,1.10972,1802.4,1802.3,2.56503543]
[1743678809842,13.37772,1802.4,1802.3,0.54311905]
[1743678810045,1.10978,1802.3,1802.2,0.00833912]
[1743678810235,4.31758,1802.3,1802.2,0.00833912]
[1743678810437,6.81758,1802.3,1802.2,0.00833912]
[1743678810738,12.78158,1802.3,1802.2,0.00833912]
[1743678811744,12.78158,1802.3,1802.2,9.12e-06]
[1743678812746,1.11015,1801.7,1801.6,40.8]
[1743678812942,8.12195,1801.7,1801.6,40.8]
[1743678815743,1.11021,1801.6,1801.5,0.06383912]
[1743678816143,3.61021,1801.6,1801.5,0.06383912]
[1743678817139,1.11021,1801.6,1801.5,0.06383912]
[1743678817343,4.91021,1801.6,1801.5,0.06383912]
[1743678817536,4.91021,1801.6,1801.5,1.59823912]
[1743678817736,4.91021,1801.6,1801.5,42.39823912]
[1743678821639,4.91021,1801.6,1801.5,9.12e-06]
[1743678821838,7.41021,1801.6,1801.5,9.12e-06]
[1743678823448,13.37421,1801.6,1801.5,9.12e-06]